[Event "*** Titled Tuesday Blitz"]
[Site "Chess.com"]
[Date "2021.03.30"]
[Round "11"]
[White "olksuna"]
[Black "GMKrikor"]
[Result "0-1"]
[WhiteElo "2688"]
[BlackElo "2841"]
[TimeControl "180+1"]
[EndTime "12:10:08 PDT"]
[Termination "GMKrikor won on time"]

1. e4 {[%clk 0:03:00.9]} 1... c5 {[%clk 0:02:58]} 2. Nf3 {[%clk 0:03:00.9]} 2...
d6 {[%clk 0:02:52.9]} 3. d4 {[%clk 0:03:00.6]} 3... cxd4 {[%clk 0:02:53.3]} 4.
Nxd4 {[%clk 0:03:01.5]} 4... Nf6 {[%clk 0:02:53.4]} 5. Nc3 {[%clk 0:03:02]} 5...
a6 {[%clk 0:02:53.6]} 6. Be2 {[%clk 0:03:02.6]} 6... e5 {[%clk 0:02:52.2]} 7.
Nf3 {[%clk 0:03:02.5]} 7... Be7 {[%clk 0:02:44.5]} 8. Bg5 {[%clk 0:03:01.9]}
8... Be6 {[%clk 0:02:42.9]} 9. Bxf6 {[%clk 0:03:01.9]} 9... Bxf6 {[%clk
0:02:43.8]} 10. O-O {[%clk 0:03:02.2]} 10... O-O {[%clk 0:02:43.2]} 11. Nd5
{[%clk 0:03:02.3]} 11... Nd7 {[%clk 0:02:37.4]} 12. Bc4 {[%clk 0:03:01.7]} 12...
Qc8 {[%clk 0:02:20.3]} 13. Qe2 {[%clk 0:02:46]} 13... Bd8 {[%clk 0:02:17.4]} 14.
Rad1 {[%clk 0:02:41.3]} 14... b5 {[%clk 0:01:55.3]} 15. Bb3 {[%clk 0:02:39.3]}
15... Nc5 {[%clk 0:01:55.5]} 16. c3 {[%clk 0:02:31.1]} 16... Nxb3 {[%clk
0:01:46.8]} 17. axb3 {[%clk 0:02:30.5]} 17... Qb7 {[%clk 0:01:47.2]} 18. b4
{[%clk 0:02:17]} 18... g6 {[%clk 0:01:40.3]} 19. h4 {[%clk 0:02:05.1]} 19... Kg7
{[%clk 0:01:09.7]} 20. Ng5 {[%clk 0:01:58.7]} 20... Rc8 {[%clk 0:00:55.1]} 21.
g3 {[%clk 0:01:56.6]} 21... Bd7 {[%clk 0:00:47.8]} 22. Rd2 {[%clk 0:01:46.2]}
22... h6 {[%clk 0:00:46.9]} 23. Nf3 {[%clk 0:01:45]} 23... Be6 {[%clk
0:00:45.7]} 24. Rfd1 {[%clk 0:01:19.1]} 24... Rc6 {[%clk 0:00:34.4]} 25. Ne3
{[%clk 0:01:14.6]} 25... Be7 {[%clk 0:00:34.4]} 26. h5 {[%clk 0:01:10.8]} 26...
Rcc8 {[%clk 0:00:33.4]} 27. Nd5 {[%clk 0:01:08.3]} 27... Bd8 {[%clk 0:00:33.7]}
28. hxg6 {[%clk 0:01:06.3]} 28... fxg6 {[%clk 0:00:34.6]} 29. Nh2 {[%clk
0:01:03.9]} 29... Qf7 {[%clk 0:00:33.9]} 30. Ng4 {[%clk 0:01:02.1]} 30... h5
{[%clk 0:00:31.5]} 31. Nge3 {[%clk 0:00:59.6]} 31... Bg5 {[%clk 0:00:31.7]} 32.
f4 {[%clk 0:00:47.6]} 32... exf4 {[%clk 0:00:24.2]} 33. Rf1 {[%clk 0:00:39.8]}
33... f3 {[%clk 0:00:23.5]} 34. Qd3 {[%clk 0:00:36.9]} 34... Kh7 {[%clk
0:00:22.3]} 35. Rdf2 {[%clk 0:00:34.9]} 35... Rce8 {[%clk 0:00:20.7]} 36. Qd4
{[%clk 0:00:29.1]} 36... Bxd5 {[%clk 0:00:18.1]} 37. Nxd5 {[%clk 0:00:26]} 37...
Qg7 {[%clk 0:00:18.4]} 38. Qxg7+ {[%clk 0:00:22.4]} 38... Kxg7 {[%clk
0:00:19.3]} 39. Rxf3 {[%clk 0:00:21.4]} 39... Rxf3 {[%clk 0:00:19.2]} 40. Rxf3
{[%clk 0:00:21.5]} 40... Rxe4 {[%clk 0:00:20]} 41. Kf2 {[%clk 0:00:21.6]} 41...
Bc1 {[%clk 0:00:18]} 42. Nc7 {[%clk 0:00:18.3]} 42... Bxb2 {[%clk 0:00:14.8]}
43. Rd3 {[%clk 0:00:16.9]} 43... Rc4 {[%clk 0:00:13.1]} 44. Nxa6 {[%clk
0:00:15.6]} 44... Bxc3 {[%clk 0:00:10.8]} 45. Rxd6 {[%clk 0:00:12.8]} 45... Bxb4
{[%clk 0:00:11]} 46. Rb6 {[%clk 0:00:12.2]} 46... Bc5+ {[%clk 0:00:09.3]} 47.
Nxc5 {[%clk 0:00:11.3]} 47... Rxc5 {[%clk 0:00:10.2]} 48. Kf3 {[%clk 0:00:10.7]}
48... Kh6 {[%clk 0:00:10.2]} 49. Kf4 {[%clk 0:00:09.2]} 49... Rc4+ {[%clk
0:00:10.6]} 50. Kf3 {[%clk 0:00:09.5]} 50... b4 {[%clk 0:00:10.8]} 51. Kg2
{[%clk 0:00:09]} 51... Kg5 {[%clk 0:00:07.7]} 52. Kh3 {[%clk 0:00:09.2]} 52...
Re4 {[%clk 0:00:07.1]} 53. Rb5+ {[%clk 0:00:08.9]} 53... Kf6 {[%clk 0:00:07.6]}
54. Rb6+ {[%clk 0:00:09.3]} 54... Kf5 {[%clk 0:00:07.6]} 55. Rb5+ {[%clk
0:00:09.8]} 55... Kf6 {[%clk 0:00:08.1]} 56. Rb6+ {[%clk 0:00:10.3]} 56... Kg7
{[%clk 0:00:08.7]} 57. Rb5 {[%clk 0:00:07.6]} 57... Kh6 {[%clk 0:00:09]} 58. Rb6
{[%clk 0:00:07.4]} 58... Rd4 {[%clk 0:00:09.3]} 59. Rb5 {[%clk 0:00:07.4]} 59...
Rc4 {[%clk 0:00:09.5]} 60. Rb6 {[%clk 0:00:07.5]} 60... Rg4 {[%clk 0:00:09.7]}
61. Rb5 {[%clk 0:00:07]} 61... Kg7 {[%clk 0:00:09.9]} 62. Rb6 {[%clk 0:00:05.6]}
62... Kf7 {[%clk 0:00:10.2]} 63. Kg2 {[%clk 0:00:05]} 63... Ke7 {[%clk
0:00:10.5]} 64. Kf3 {[%clk 0:00:05.4]} 64... Kd7 {[%clk 0:00:11.1]} 65. Rb5
{[%clk 0:00:02.3]} 65... Kc6 {[%clk 0:00:10.9]} 66. Rb8 {[%clk 0:00:03.2]} 66...
Kc5 {[%clk 0:00:11.3]} 67. Rc8+ {[%clk 0:00:02.2]} 67... Kd4 {[%clk 0:00:11.3]}
68. Rd8+ {[%clk 0:00:02.5]} 68... Kc3 {[%clk 0:00:11.5]} 69. Re8 {[%clk
0:00:03]} 69... b3 {[%clk 0:00:11.3]} 70. Re3+ {[%clk 0:00:03.6]} 70... Kb2
{[%clk 0:00:11.7]} 71. Re2+ {[%clk 0:00:03.7]} 71... Ka1 {[%clk 0:00:11.3]} 72.
Re1+ {[%clk 0:00:03.6]} 72... Ka2 {[%clk 0:00:11.6]} 0-1

[Event "*** Titled Tuesday Blitz"]
[Site "Chess.com"]
[Date "2021.03.30"]
[Round "11"]
[White "AttilaTurzo"]
[Black "Vuk2000"]
[Result "0-1"]
[WhiteElo "2496"]
[BlackElo "2717"]
[TimeControl "180+1"]
[EndTime "12:10:24 PDT"]
[Termination "Vuk2000 won on time"]

1. d4 {[%clk 0:03:00.9]} 1... Nf6 {[%clk 0:02:59.8]} 2. Nf3 {[%clk 0:03:01.5]}
2... e6 {[%clk 0:02:59.3]} 3. Bf4 {[%clk 0:03:01.7]} 3... d5 {[%clk 0:02:57.8]}
4. e3 {[%clk 0:03:02.1]} 4... Bd6 {[%clk 0:02:58.3]} 5. Bg3 {[%clk 0:03:02.8]}
5... O-O {[%clk 0:02:58.8]} 6. Nbd2 {[%clk 0:03:03.4]} 6... c5 {[%clk
0:02:59.2]} 7. c3 {[%clk 0:03:03.9]} 7... Qc7 {[%clk 0:02:59.5]} 8. dxc5 {[%clk
0:03:04.4]} 8... Qxc5 {[%clk 0:02:59.2]} 9. Bd3 {[%clk 0:03:04.9]} 9... Nbd7
{[%clk 0:02:59.2]} 10. e4 {[%clk 0:03:03.7]} 10... dxe4 {[%clk 0:02:53.6]} 11.
Nxe4 {[%clk 0:03:04.6]} 11... Nxe4 {[%clk 0:02:52.4]} 12. Bxe4 {[%clk
0:03:05.5]} 12... Be7 {[%clk 0:02:42.2]} 13. O-O {[%clk 0:03:02.5]} 13... Nf6
{[%clk 0:02:42]} 14. Bc2 {[%clk 0:02:57.8]} 14... b5 {[%clk 0:02:35.5]} 15. Be5
{[%clk 0:02:49.5]} 15... Bb7 {[%clk 0:02:27.2]} 16. Bd4 {[%clk 0:02:48.8]} 16...
Qc6 {[%clk 0:02:19]} 17. Qe2 {[%clk 0:02:33.4]} 17... a5 {[%clk 0:02:17.9]} 18.
Bd3 {[%clk 0:02:20.2]} 18... b4 {[%clk 0:02:13.4]} 19. c4 {[%clk 0:02:17.4]}
19... Rfd8 {[%clk 0:02:08.4]} 20. Be3 {[%clk 0:02:08.9]} 20... Ng4 {[%clk
0:01:59.6]} 21. Bf4 {[%clk 0:02:01.7]} 21... Rd4 {[%clk 0:01:55]} 22. Be3 {[%clk
0:01:47.6]} 22... Nxe3 {[%clk 0:01:27.7]} 23. fxe3 {[%clk 0:01:46.8]} 23... Rg4
{[%clk 0:01:25.5]} 24. Rf2 {[%clk 0:01:42.9]} 24... Bf6 {[%clk 0:01:18.3]} 25.
Ne5 {[%clk 0:01:35.9]} 25... Rxg2+ {[%clk 0:01:17.8]} 26. Rxg2 {[%clk
0:01:35.5]} 26... Qxg2+ {[%clk 0:01:17.5]} 27. Qxg2 {[%clk 0:01:31.2]} 27...
Bxg2 {[%clk 0:01:16.9]} 28. Kxg2 {[%clk 0:01:14.1]} 28... Bxe5 {[%clk
0:01:15.5]} 29. Rb1 {[%clk 0:01:14.4]} 29... a4 {[%clk 0:01:12.7]} 30. h3 {[%clk
0:01:11.3]} 30... b3 {[%clk 0:01:11.6]} 31. axb3 {[%clk 0:01:07.4]} 31... axb3
{[%clk 0:01:11.9]} 32. Kf3 {[%clk 0:01:06.4]} 32... f5 {[%clk 0:01:06.7]} 33.
Ke2 {[%clk 0:01:04.4]} 33... Ra2 {[%clk 0:01:05.5]} 34. c5 {[%clk 0:01:02.1]}
34... Bxb2 {[%clk 0:00:47.2]} 35. Kf3 {[%clk 0:01:01.9]} 35... Kf7 {[%clk
0:00:31.7]} 36. Bc4 {[%clk 0:01:00]} 36... Ba3 {[%clk 0:00:27.1]} 37. Bxb3
{[%clk 0:00:56.4]} 37... Rh2 {[%clk 0:00:26.3]} 38. Kg3 {[%clk 0:00:50.5]} 38...
Rd2 {[%clk 0:00:23]} 39. c6 {[%clk 0:00:42]} 39... Rd3 {[%clk 0:00:22.3]} 40.
Kf3 {[%clk 0:00:37.4]} 40... Rc3 {[%clk 0:00:20]} 41. Ba4 {[%clk 0:00:34.3]}
41... Bd6 {[%clk 0:00:18.6]} 42. Rb7+ {[%clk 0:00:31.2]} 42... Kf6 {[%clk
0:00:18.5]} 43. Rd7 {[%clk 0:00:31.3]} 43... Be5 {[%clk 0:00:18.5]} 44. Ke2
{[%clk 0:00:26.5]} 44... Rc4 {[%clk 0:00:16.7]} 45. Bb5 {[%clk 0:00:25.8]} 45...
Rb4 {[%clk 0:00:10.6]} 46. Rb7 {[%clk 0:00:24.9]} 46... h6 {[%clk 0:00:06.9]}
47. Bd3 {[%clk 0:00:21.8]} 47... Ra4 {[%clk 0:00:04.4]} 48. c7 {[%clk
0:00:20.5]} 48... Ra8 {[%clk 0:00:04.8]} 49. Bc4 {[%clk 0:00:13.9]} 49... Rc8
{[%clk 0:00:04.9]} 50. Rb6 {[%clk 0:00:13.3]} 50... Rxc7 {[%clk 0:00:05.3]} 51.
Rxe6+ {[%clk 0:00:12.8]} 51... Kg5 {[%clk 0:00:05.7]} 52. Bd3 {[%clk 0:00:10.4]}
52... Bf6 {[%clk 0:00:06]} 53. Rd6 {[%clk 0:00:09.8]} 53... Rc5 {[%clk
0:00:05.9]} 54. Kf3 {[%clk 0:00:09.2]} 54... Ra5 {[%clk 0:00:05.4]} 55. Rb6
{[%clk 0:00:09.1]} 55... g6 {[%clk 0:00:05.3]} 56. Rb5 {[%clk 0:00:08.3]} 56...
Ra3 {[%clk 0:00:04.8]} 57. Rd5 {[%clk 0:00:08.5]} 57... Ra4 {[%clk 0:00:02.9]}
58. e4 {[%clk 0:00:08]} 58... h5 {[%clk 0:00:03.3]} 59. exf5 {[%clk 0:00:07.4]}
59... Rf4+ {[%clk 0:00:03.7]} 60. Kg3 {[%clk 0:00:07.2]} 60... h4+ {[%clk
0:00:02.8]} 61. Kg2 {[%clk 0:00:06.8]} 61... gxf5 {[%clk 0:00:03.1]} 62. Be2
{[%clk 0:00:05.8]} 62... Bd4 {[%clk 0:00:02.9]} 63. Bf3 {[%clk 0:00:05.3]} 63...
Be3 {[%clk 0:00:03.2]} 64. Rd3 {[%clk 0:00:04.8]} 64... Bc5 {[%clk 0:00:03.2]}
65. Rd8 {[%clk 0:00:04.3]} 65... Kf6 {[%clk 0:00:03.1]} 66. Rc8 {[%clk
0:00:03.4]} 66... Bd4 {[%clk 0:00:03]} 67. Rc6+ {[%clk 0:00:03.2]} 67... Ke5
{[%clk 0:00:03.2]} 68. Rh6 {[%clk 0:00:03.1]} 68... Be3 {[%clk 0:00:03.2]} 69.
Rh8 {[%clk 0:00:02.6]} 69... Rd4 {[%clk 0:00:03.2]} 0-1

[Event "*** Titled Tuesday Blitz"]
[Site "Chess.com"]
[Date "2021.03.30"]
[Round "11"]
[White "enriquetejedor"]
[Black "Abund"]
[Result "0-1"]
[WhiteElo "2611"]
[BlackElo "2736"]
[TimeControl "180+1"]
[EndTime "12:11:06 PDT"]
[Termination "Abund won by resignation"]

1. c4 {[%clk 0:03:00.9]} 1... Nf6 {[%clk 0:02:59.5]} 2. g4 {[%clk 0:03:00.2]}
2... Nxg4 {[%clk 0:02:58.8]} 3. e4 {[%clk 0:02:52]} 3... d6 {[%clk 0:02:54.2]}
4. d4 {[%clk 0:02:51.6]} 4... e5 {[%clk 0:02:44.9]} 5. d5 {[%clk 0:02:44.4]}
5... g6 {[%clk 0:02:36.2]} 6. Nc3 {[%clk 0:02:35.6]} 6... Bg7 {[%clk 0:02:32.7]}
7. Be2 {[%clk 0:02:32.2]} 7... Qh4 {[%clk 0:02:28.7]} 8. Bxg4 {[%clk 0:02:27.1]}
8... Bxg4 {[%clk 0:02:28.5]} 9. Qd3 {[%clk 0:02:27.5]} 9... a6 {[%clk
0:02:22.8]} 10. Qg3 {[%clk 0:02:19]} 10... Qh5 {[%clk 0:02:18.1]} 11. f3 {[%clk
0:02:04.1]} 11... Bc8 {[%clk 0:02:16.8]} 12. Nge2 {[%clk 0:01:57.7]} 12... Nd7
{[%clk 0:02:13.9]} 13. Be3 {[%clk 0:01:56.5]} 13... O-O {[%clk 0:02:02.8]} 14.
Qg4 {[%clk 0:01:33.3]} 14... Nf6 {[%clk 0:01:54.1]} 15. Qg3 {[%clk 0:01:31.4]}
15... Bd7 {[%clk 0:01:43.2]} 16. O-O-O {[%clk 0:01:19.9]} 16... Bh6 {[%clk
0:01:37.8]} 17. Rd3 {[%clk 0:01:12.3]} 17... Bxe3+ {[%clk 0:01:33.8]} 18. Rxe3
{[%clk 0:01:13.2]} 18... Qh6 {[%clk 0:01:34.3]} 19. Qf2 {[%clk 0:01:10.9]} 19...
Nh5 {[%clk 0:01:33.4]} 20. Kc2 {[%clk 0:01:05.9]} 20... b5 {[%clk 0:01:32.4]}
21. Rd3 {[%clk 0:01:01.7]} 21... bxc4 {[%clk 0:01:30.5]} 22. Rdd1 {[%clk
0:01:01.1]} 22... f5 {[%clk 0:01:29.1]} 23. Ng3 {[%clk 0:00:56.2]} 23... Nf4
{[%clk 0:01:22.3]} 24. Qe3 {[%clk 0:00:44.2]} 24... Qh3 {[%clk 0:01:18.4]} 25.
Rd2 {[%clk 0:00:41.9]} 25... Kh8 {[%clk 0:01:14.9]} 26. Rb1 {[%clk 0:00:32.6]}
26... Nd3 {[%clk 0:01:08.5]} 27. Qe2 {[%clk 0:00:24.4]} 27... Rab8 {[%clk
0:01:04.5]} 28. b3 {[%clk 0:00:06.1]} 28... Nb4+ {[%clk 0:00:58.9]} 29. Kb2
{[%clk 0:00:06]} 29... cxb3 {[%clk 0:00:58.4]} 30. axb3 {[%clk 0:00:06.9]} 30...
a5 {[%clk 0:00:55.8]} 31. Ra1 {[%clk 0:00:07]} 31... Ra8 {[%clk 0:00:53.4]} 32.
Nb5 {[%clk 0:00:05.9]} 32... Rfc8 {[%clk 0:00:46.8]} 33. Rc1 {[%clk 0:00:05.6]}
33... f4 {[%clk 0:00:40.9]} 34. Nxc7 {[%clk 0:00:02.1]} 34... fxg3 {[%clk
0:00:37.6]} 35. Nxa8 {[%clk 0:00:01.6]} 35... Rxa8 {[%clk 0:00:38.3]} 36. hxg3
{[%clk 0:00:01.4]} 36... Qxg3 {[%clk 0:00:35.7]} 37. Rc7 {[%clk 0:00:01.9]}
37... Rd8 {[%clk 0:00:33.4]} 38. Qh2 {[%clk 0:00:02]} 38... Qxh2 {[%clk
0:00:32.4]} 39. Rxh2 {[%clk 0:00:02.9]} 39... Nd3+ {[%clk 0:00:30.6]} 40. Kc3
{[%clk 0:00:02.9]} 40... Nc5 {[%clk 0:00:30.6]} 41. Ra2 {[%clk 0:00:02.9]} 41...
Ra8 {[%clk 0:00:28.5]} 42. Kc2 {[%clk 0:00:03]} 42... Kg8 {[%clk 0:00:25.3]} 43.
Ra1 {[%clk 0:00:02.9]} 43... Kf8 {[%clk 0:00:20.8]} 44. b4 {[%clk 0:00:02.9]}
44... Ba4+ {[%clk 0:00:20.1]} 45. Kc3 {[%clk 0:00:03]} 45... axb4+ {[%clk
0:00:19.9]} 46. Kxb4 {[%clk 0:00:03.4]} 46... Na6+ {[%clk 0:00:20.1]} 47. Kc3
{[%clk 0:00:01.8]} 47... Nxc7 {[%clk 0:00:20.7]} 48. Rh1 {[%clk 0:00:02.4]}
48... Nb5+ {[%clk 0:00:21.5]} 49. Kb4 {[%clk 0:00:02.4]} 49... Ra7 {[%clk
0:00:22.2]} 50. Rc1 {[%clk 0:00:02]} 50... Nd4 {[%clk 0:00:21.9]} 51. Rc8+
{[%clk 0:00:01.6]} 51... Be8 {[%clk 0:00:22.4]} 52. Rc3 {[%clk 0:00:01.3]} 52...
Rb7+ {[%clk 0:00:22.6]} 53. Ka5 {[%clk 0:00:01.4]} 53... Rb3 {[%clk 0:00:13.5]}
54. Rc7 {[%clk 0:00:01.4]} 54... Bf7 {[%clk 0:00:11.9]} 55. Rc8+ {[%clk
0:00:01.5]} 55... Kg7 {[%clk 0:00:11.7]} 56. Rc7 {[%clk 0:00:01.7]} 56... Rxf3
{[%clk 0:00:11.4]} 57. Rd7 {[%clk 0:00:02.1]} 57... Rf6 {[%clk 0:00:12]} 58. Kb4
{[%clk 0:00:01.9]} 58... h5 {[%clk 0:00:12.6]} 59. Rc7 {[%clk 0:00:02.1]} 59...
h4 {[%clk 0:00:13.3]} 60. Rc3 {[%clk 0:00:02.6]} 60... g5 {[%clk 0:00:13.9]} 61.
Rh3 {[%clk 0:00:02.1]} 61... Rg6 {[%clk 0:00:14.4]} 62. Kc4 {[%clk 0:00:01.8]}
62... Kh6 {[%clk 0:00:14.5]} 63. Kd3 {[%clk 0:00:01.6]} 63... Kh5 {[%clk
0:00:15.2]} 64. Ke3 {[%clk 0:00:02]} 64... g4 {[%clk 0:00:15.8]} 65. Rh1 {[%clk
0:00:02.7]} 65... g3 {[%clk 0:00:16.1]} 66. Rb1 {[%clk 0:00:03.2]} 66... g2
{[%clk 0:00:16.2]} 67. Kf2 {[%clk 0:00:03.6]} 67... g1=Q+ {[%clk 0:00:15.8]} 68.
Rxg1 {[%clk 0:00:03.6]} 68... Rxg1 {[%clk 0:00:16.7]} 69. Kxg1 {[%clk
0:00:04.2]} 69... Kg4 {[%clk 0:00:17.6]} 70. Kf2 {[%clk 0:00:04.3]} 70... Kf4
{[%clk 0:00:18.5]} 71. Kg2 {[%clk 0:00:04.6]} 71... Kxe4 {[%clk 0:00:19.4]} 72.
Kh3 {[%clk 0:00:05.2]} 72... Kxd5 {[%clk 0:00:20.3]} 73. Kxh4 {[%clk 0:00:06.1]}
73... Kc4 {[%clk 0:00:21.2]} 74. Kg3 {[%clk 0:00:07]} 74... Kb3 {[%clk
0:00:21.9]} 75. Kf2 {[%clk 0:00:07.9]} 75... Kb2 {[%clk 0:00:22.8]} 76. Ke3
{[%clk 0:00:08.8]} 76... Kb1 {[%clk 0:00:23.7]} 77. Kd3 {[%clk 0:00:09.2]} 77...
Kb2 {[%clk 0:00:24.6]} 78. Kd2 {[%clk 0:00:09.1]} 78... Ka2 {[%clk 0:00:25.5]}
79. Kd3 {[%clk 0:00:10]} 79... Ka3 {[%clk 0:00:26.3]} 80. Kc3 {[%clk 0:00:10.9]}
80... Ka4 {[%clk 0:00:25.6]} 81. Kd3 {[%clk 0:00:10.7]} 81... d5 {[%clk
0:00:26]} 82. Kc3 {[%clk 0:00:10.9]} 82... Kb5 {[%clk 0:00:26.5]} 83. Kd3 {[%clk
0:00:11]} 83... Kc5 {[%clk 0:00:27.4]} 84. Kc3 {[%clk 0:00:11.2]} 84... e4
{[%clk 0:00:28.3]} 85. Kd2 {[%clk 0:00:11.4]} 85... Ne6 {[%clk 0:00:29.1]} 86.
Ke3 {[%clk 0:00:11.6]} 86... Bg8 {[%clk 0:00:30]} 87. Ke2 {[%clk 0:00:10.9]}
87... Bh7 {[%clk 0:00:30.9]} 88. Ke3 {[%clk 0:00:11]} 88... Bg6 {[%clk
0:00:31.8]} 89. Ke2 {[%clk 0:00:11.3]} 89... Bf7 {[%clk 0:00:32.7]} 90. Kd2
{[%clk 0:00:12.2]} 90... Be8 {[%clk 0:00:33.4]} 91. Ke3 {[%clk 0:00:13.1]} 91...
Kd6 {[%clk 0:00:34.2]} 92. Kd2 {[%clk 0:00:14]} 92... Ke5 {[%clk 0:00:35]} 93.
Ke3 {[%clk 0:00:14.9]} 93... d4+ {[%clk 0:00:35.8]} 94. Ke2 {[%clk 0:00:15.8]}
94... Bb5+ {[%clk 0:00:35.7]} 95. Kd2 {[%clk 0:00:16.7]} 95... e3+ {[%clk
0:00:36]} 96. Kd1 {[%clk 0:00:17.6]} 96... Ke4 {[%clk 0:00:36.5]} 97. Ke1 {[%clk
0:00:17.9]} 97... Nf4 {[%clk 0:00:37.4]} 98. Kd1 {[%clk 0:00:18.8]} 0-1